fUST/lending_fUST_20250314
["ID","MTS","AMOUNT","RATE_DAILY","PERIOD"]
[356140819,1741952451729,-204.2188,0.000323,120]
[356140820,1741952451753,-221.97547,0.000323,120]
[356140821,1741952451779,-153.0,0.0003247,30]
[356140822,1741952451803,-153.0,0.0003247,30]
[356140823,1741952451828,-153.0,0.0003247,30]
[356140824,1741952451853,-306.0,0.0003247,30]
[356140825,1741952451878,-153.0,0.0003247,30]
[356140826,1741952451906,-287.2002376,0.0003247,30]
[356140827,1741952451931,-153.0,0.0003247,30]
[356140828,1741952451956,-489.02518425,0.000325,30]
[356140829,1741952451982,-421.40873657,0.000325,30]
[356140830,1741952452010,-500.0,0.00032876,120]
[356140831,1741952452034,-500.0,0.00032876,120]
[356140832,1741952452059,-500.0,0.00032876,120]
[356140833,1741952452083,-500.0,0.00032876,120]
[356140834,1741952452108,-500.0,0.00032876,120]
[356140835,1741952452132,-500.0,0.00032876,120]
[356140836,1741952452156,-500.0,0.00032876,120]
[356140837,1741952452180,-500.0,0.00032876,120]
[356140838,1741952452205,-500.0,0.00032876,120]
[356140839,1741952452229,-500.0,0.00032876,120]
[356140840,1741952452265,-500.0,0.00032876,120]
[356140841,1741952452290,-500.0,0.00032876,120]
[356140842,1741952452315,-500.0,0.00032876,120]
[356140843,1741952452339,-500.0,0.00032876,120]
[356140844,1741952452363,-500.0,0.00032876,120]
[356140845,1741952452388,-500.0,0.00032876,120]
[356140846,1741952452413,-598.66253336,0.00032876,120]
[356140847,1741952452439,-656.45,0.000329,30]
[356140848,1741952452465,-1039.7,0.000329,30]
[356140849,1741952452489,-30788.07,0.000329,30]
[356140850,1741952452515,-10591.59,0.00033,30]
[356140851,1741952452540,-5035.15,0.00033,30]
[356140852,1741952452564,-310.7238952,0.00033126,30]
[356140853,1741952452588,-153.0,0.00033292,30]
[356140854,1741952452612,-153.0,0.00033292,30]
[356140855,1741952452636,-153.0,0.00033292,30]
[356140856,1741952452660,-153.0,0.00033292,30]
[356140857,1741952452684,-153.0,0.00033292,30]
[356140858,1741952452708,-153.0,0.00033292,30]
[356140859,1741952452732,-153.0,0.00033292,30]
[356140860,1741952452757,-153.0,0.00033292,30]
[356140861,1741952452782,-153.0,0.00033292,30]
[356140862,1741952452807,-153.0,0.00033415,30]
[356140863,1741952452853,-153.0,0.00033415,30]
[356140864,1741952453064,-153.0,0.00033415,30]
[356140865,1741952453118,-153.0,0.00033415,30]
[356140866,1741952453151,-30788.07,0.000335,30]
[356140867,1741952453177,-1412.54,0.0003365,120]
[356140868,1741952453204,-200.0,0.0003417,120]
[356140869,1741952453230,-200.0,0.00034248,120]
[356140870,1741952453257,-30788.07,0.000347,30]
[356140871,1741952453282,-1039.7,0.00035,30]
[356140872,1741952453306,-1420.87402277,0.00035,120]
[356140873,1741952453331,-226.60485285,0.00035,30]
[356140874,1741952453356,-200.0,0.00035,30]
[356140875,1741952453381,-150.0,0.00035,69]
[356140876,1741952453406,-648.51914689,0.00035,120]
[356140877,1741952453431,-550.0,0.00035,120]
[356140878,1741952453456,-502.23,0.00035,120]
[356140879,1741952453481,-633.154,0.00035062,40]
[356140880,1741952453506,-200.0,0.00035231,120]
[356140881,1741952453531,-656.45,0.000353,30]
[356140882,1741952453556,-262.117634,0.00035591,30]
[356140883,1741952453580,-186.9553738,0.00035591,30]
[356140884,1741952453605,-186.9553738,0.00035591,30]
[356140885,1741952453630,-186.9553738,0.00035591,30]
[356140886,1741952453654,-186.9553738,0.00035591,30]
[356140887,1741952453679,-186.9553738,0.00035591,30]
[356140888,1741952453703,-186.9553738,0.00035591,30]
[356140889,1741952453727,-186.9553738,0.00035591,30]
[356140890,1741952453752,-186.9553738,0.00035591,30]
[356140891,1741952453776,-186.9553738,0.00035591,30]
[356140892,1741952453801,-312.9818486,0.00035591,30]
[356140893,1741952453828,-30788.07,0.000357,30]
[356140894,1741952453853,-150.0,0.00036,86]
[356140895,1741952453878,-10591.59,0.00036,30]
[356140896,1741952453905,-5035.15,0.00036,30]
[356140897,1741952453934,-6559.32013532,0.00036,30]
[356140898,1741952453968,-4128.19967645,0.000362,98]
[356140899,1741952453998,-4128.19967644,0.000362,98]
[356140900,1741952454024,-4128.19967644,0.000362,98]
[356140901,1741952454051,-4128.19967644,0.000362,98]
[356140902,1741952454076,-4128.19967644,0.000362,98]
[356140903,1741952454102,-30788.07,0.000366,30]
[356140904,1741952454127,-1039.7,0.000369,30]
[356140905,1741952454152,-152.1,0.00037,103]
[356140906,1741952454178,-656.45,0.000372,30]
[356140907,1741952454205,-150.0,0.000375,112]
[356140908,1741952454231,-221.97547,0.000376,120]
[356140909,1741952454257,-1333.0,0.00037753,120]
[356140910,1741952454283,-1039.7,0.000381,30]
[356140911,1741952454309,-656.45,0.000387,30]
[356140912,1741952454334,-799.44644646,0.00039,120]
[356140913,1741952454360,-10591.59,0.00039,30]
[356140914,1741952454385,-5035.15,0.00039,30]
[356140915,1741952454411,-135038.09674163,0.00039,120]
[356140916,1741952454438,-1039.7,0.000393,30]
[356140917,1741952454464,-1917.412389,0.000394,120]
[356140918,1741952454490,-656.45,0.000397,30]
[356140919,1741952454515,-152493.40677515,0.000398,120]
[356140920,1741952454542,-144362.94978743,0.000398,120]
[356140921,1741952454567,-691.9,0.000398,60]
[356140922,1741952454592,-40000.0,0.0003986,30]
[356140923,1741952454618,-14556.52529037,0.000399,120]
[356140924,1741952454642,-40000.0,0.0003992,30]
[356140925,1741952454669,-1359.24907022,0.0004,120]
[356140926,1741952454694,-177.50835351,0.0004,120]
[356140927,1741952454719,-30788.07,0.0004,30]
[356140928,1741952454745,-200.0,0.0004,120]
[356140929,1741952454770,-6700.0,0.0004,60]
[356140930,1741952454794,-21064.0,0.0004,120]
[356140931,1741952454819,-399.0,0.0004,60]
[356140932,1741952454844,-412.6945322,0.0004,120]
[356140933,1741952454870,-2499.0,0.0004,120]
[356140934,1741952454899,-69918.8449366,0.0004,30]
[356140935,1741952454925,-183.5,0.0004,120]
[356140936,1741952454953,-14000.0,0.0004,120]
[356140937,1741952454980,-3993.37626253,0.0004,120]
[356140938,1741952455006,-296.0,0.0004,60]
[356140939,1741952455031,-240000.0,0.0004,30]
[356140940,1741952455056,-416.66666667,0.0004,120]
[356140941,1741952455081,-12458.93820146,0.0004,120]
[356140942,1741952455106,-2475.85,0.0004,30]
[356140943,1741952455130,-1039.7,0.000402,30]
[356140944,1741952455154,-5000.0,0.00040271,30]
[356140945,1741952455180,-200.0,0.00040338,120]
[356140946,1741952455205,-200.0,0.0004044,120]
[356140947,1741952455230,-50000.0,0.000405,120]
[356140948,1741952455255,-656.45,0.000407,30]
[356140949,1741952455283,-200.0,0.00040857,120]
[356140950,1741952455308,-702.24456145,0.00041,120]
[356140951,1741952455334,-802.87,0.00041095,120]
[356140952,1741952455358,-500.0,0.00041095,120]
[356140953,1741952455382,-507.54617444,0.00041095,120]
[356140954,1741952455408,-1819.99,0.00041095,120]
[356140955,1741952455433,-50000.0,0.00041096,30]
[356140956,1741952455459,-164.851124,0.00041096,120]
[356140957,1741952455484,-300.04892721,0.00041096,31]
[356140958,1741952455509,-500.0,0.00041096,31]
[356140959,1741952455533,-200.11416349,0.00041096,31]
[356140960,1741952455560,-1039.7,0.000411,30]
[356140961,1741952455587,-5000.0,0.000415,90]
[356140962,1741952455612,-1412.54,0.00041769,120]
[356140963,1741952455639,-200.0,0.00041997,120]
[356140964,1741952455665,-150.0,0.00042,120]
[356140965,1741952455691,-10591.59,0.00042,30]
[356140966,1741952455715,-3455.15,0.00042,30]
[356140967,1741952455907,-5035.15,0.00042,30]
[356140968,1741952455938,-70000.0,0.000423,30]
[356140969,1741952455966,-802.87,0.00042465,120]
[356140970,1741952455993,-1819.99,0.00042465,120]
[356140971,1741952456019,-50000.0,0.000425,120]
[356140972,1741952456044,-347.61,0.00042768,30]
[356140973,1741952456072,-1866.898,0.000428,90]
[356140974,1741952456097,-221.97547,0.000429,120]
[356140975,1741952456123,-656.45,0.00043,30]
[356140976,1741952456148,-506.78,0.00043,120]
[356140977,1741952456174,-1039.7,0.000438,30]
[356140978,1741952456199,-802.87,0.00043835,120]
[356140979,1741952456225,-1819.99,0.00043835,120]
[356140980,1741952456251,-1999.78000101,0.00044,60]
[356140981,1741952456275,-2420.79585615,0.00044,60]
[356140982,1741952456300,-253.0083452,0.00044,30]
[356140983,1741952456326,-158.0,0.00044,120]
[356140984,1741952456350,-3455.15,0.00044,30]
[356140985,1741952456375,-1551.18,0.00044136,120]
[356140986,1741952456399,-1551.18,0.00044136,120]
[356140987,1741952456423,-1551.18,0.00044136,120]
[356140988,1741952456448,-1551.18,0.00044136,120]
[356140989,1741952456473,-1551.18,0.00044136,120]
[356140990,1741952456499,-1551.18,0.00044136,120]
[356140991,1741952456524,-1551.18,0.00044136,120]
[356140992,1741952456551,-1551.18,0.00044136,120]
[356140993,1741952456576,-1551.18,0.00044136,120]
[356140994,1741952456603,-1551.18,0.00044136,120]
[356140995,1741952456627,-1551.18,0.00044136,120]
[356140996,1741952456652,-1551.18,0.00044136,120]
[356140997,1741952456677,-1551.18,0.00044136,120]
[356140998,1741952456703,-1551.18,0.00044136,120]
[356140999,1741952456727,-1551.18,0.00044136,120]
[356141000,1741952456753,-1551.18,0.00044136,120]
[356141001,1741952456778,-1551.18,0.00044136,120]
[356141002,1741952456804,-1551.18,0.00044136,120]
[356141003,1741952456830,-1551.18,0.00044136,120]
[356141004,1741952456856,-1551.18,0.00044136,120]
[356141005,1741952456881,-1551.18,0.00044136,120]
[356141006,1741952456911,-1551.18,0.00044136,120]
[356141007,1741952456937,-1551.18,0.00044136,120]
[356141008,1741952456962,-1551.35570195,0.00044136,120]
[356141009,1741952457002,-200.0,0.00044193,120]
[356141010,1741952457057,-200.0,0.00044224,120]
[356141011,1741952457113,-1047.70445947,0.00044327,93]
[356141012,1741952457169,-1047.70445947,0.00044427,97]
[356141013,1741952457222,-5027.01150985,0.000445,120]
[356141014,1741952457273,-1047.70445947,0.00044527,90]
[356141015,1741952457312,-1047.70445947,0.00044627,91]
[356141016,1741952457365,-1047.70445947,0.00044727,98]
[356141017,1741952457415,-1047.70445947,0.00044827,96]
[356141018,1741952457466,-1047.70445947,0.00044927,97]
[356141019,1741952457523,-35167.71776608,0.00044987,30]
[356141020,1741952457567,-10000.0,0.00045,45]
[356141021,1741952457592,-599.34171654,0.00045,30]
[356141022,1741952457617,-1000.0,0.00045,120]
[356141023,1741952457642,-151.0,0.00045,120]
[356141024,1741952457668,-508.0,0.00045,120]
[356141025,1741952457693,-1000.0,0.00045,60]
[356141026,1741952457718,-8620.26602032,0.00045,120]
[356141027,1741952457744,-9999.0,0.00045,120]
[356141028,1741952457769,-2000.0,0.00045,120]
[356141029,1741952457794,-10591.59,0.00045,30]
[356141030,1741952457819,-5035.15,0.00045,30]
[356141031,1741952457845,-151.0,0.00045,120]
[356141032,1741952457870,-1047.70445947,0.00045027,96]
[356141033,1741952457899,-22291.55373308,0.00045052,90]
[356141034,1741952457925,-1047.70445947,0.00045127,98]
[356141035,1741952457951,-802.87,0.00045205,120]
[356141036,1741952457978,-1819.99,0.00045205,120]
[356141037,1741952458005,-1047.70445947,0.00045227,98]
[356141038,1741952458030,-656.45,0.000453,30]
[356141039,1741952458056,-1047.70445947,0.00045327,100]
[356141040,1741952458082,-1047.70445947,0.00045427,91]
[356141041,1741952458108,-50000.0,0.000455,120]
[356141042,1741952458134,-1047.70445947,0.00045527,95]
[356141043,1741952458160,-1047.70445947,0.00045627,91]
[356141044,1741952458185,-1047.70445947,0.00045727,94]
[356141045,1741952458210,-64996.60851644,0.000458,30]
[356141046,1741952466217,-160.0,0.0002,30]
[356141047,1741952466242,-160.0,0.0002,30]
[356141048,1741952466302,-836175.14393353,0.000458,30]
[356141049,1741952466328,-913.0,0.000458,30]
[356141050,1741952466355,-1047.70445947,0.00045827,100]
[356141051,1741952466381,-5000.0,0.000459,120]
[356141052,1741952466408,-1047.70445947,0.00045927,99]
[356141053,1741952466434,-121873.80112218,0.00046,120]
[356141054,1741952466462,-158.0,0.00046,120]
[356141055,1741952466488,-45071.98416036,0.00046,120]
[356141056,1741952466514,-30788.07,0.00046,30]
[356141057,1741952466539,-3455.15,0.00046,30]
[356141058,1741952466565,-1717.38932465,0.00046,120]
[356141059,1741952466591,-1047.70445947,0.00046027,99]
[356141060,1741952466616,-1047.70445947,0.00046127,91]
[356141061,1741952466641,-1047.70445947,0.00046227,100]
[356141062,1741952466667,-544.18677103,0.00046301,30]
[356141063,1741952466693,-1047.70445947,0.00046327,96]
[356141064,1741952466718,-1047.70445947,0.00046427,93]
[356141065,1741952466744,-1047.70445947,0.00046527,96]
[356141066,1741952466770,-802.87,0.00046575,120]
[356141067,1741952466795,-1047.70445947,0.00046627,96]
[356141068,1741952466821,-1047.70445947,0.00046727,97]
[356141069,1741952466846,-58767.98680789,0.000468,120]
[356141070,1741952466871,-1657.96750069,0.000468,90]
[356141071,1741952466899,-60000.0,0.000468,30]
[356141072,1741952466924,-1047.70445947,0.00046827,91]
[356141073,1741952466949,-1047.70445947,0.00046927,91]
[356141074,1741952466975,-45417.63910472,0.00047,30]
[356141075,1741952467001,-10000.0,0.00047,30]
[356141076,1741952467029,-1101.96573182,0.00047,120]
[356141077,1741952467053,-14000.0,0.00047,60]
[356141078,1741952467079,-1121.8827225,0.00047,120]
[356141079,1741952467103,-6941.39690318,0.00047,120]
[356141080,1741952467128,-9173.55006058,0.00047,120]
[356141081,1741952467153,-4111.0,0.00047,120]
[356141082,1741952467178,-1047.70445947,0.00047027,100]
[356141083,1741952467204,-200.0,0.00047075,120]
[356141084,1741952467229,-1047.70445947,0.00047127,97]
[356141085,1741952467253,-1047.70445947,0.00047227,90]
[356141086,1741952467280,-1047.70445947,0.00047327,95]
[356141087,1741952467305,-242062.64208572,0.000474,120]
[356141088,1741952467329,-1047.70445947,0.00047427,95]
[356141089,1741952467354,-582.0,0.00047464,120]
[356141090,1741952467379,-300010.013,0.00047478,120]
[356141091,1741952467404,-2099990.0,0.00047478,120]
[356141092,1741952467616,-24136.13,0.000475,120]
[356141093,1741952467642,-23577.81,0.000475,120]
[356141094,1741952467669,-1047.70445947,0.00047527,90]
[356141095,1741952467694,-1047.70445947,0.00047627,90]
[356141096,1741952467724,-1047.70445947,0.00047727,97]
[356141097,1741952467749,-4300.91200699,0.000478,120]
[356141098,1741952467777,-497.1625958,0.000478,120]
[356141099,1741952467802,-1047.70445947,0.00047827,90]
[356141100,1741952467828,-21482.68776698,0.0004789,120]
[356141101,1741952467853,-38831.29948673,0.000479,120]
[356141102,1741952467878,-29046.97899515,0.000479,120]
[356141103,1741952467905,-219000.0,0.000479,120]
[356141104,1741952467932,-2352.53094653,0.00047905,120]
[356141105,1741952467959,-200.0,0.00047925,120]
[356141106,1741952467985,-1047.70445947,0.00047927,97]
[356141107,1741952468012,-2352.53094653,0.00047937,120]
[356141108,1741952468038,-200.0,0.00047938,120]
[356141109,1741952468064,-802.87,0.00047945,120]
[356141110,1741952468740,2215.886,0.00047478,30]
[356141111,1741952473077,913.0,0.000458,30]
[356141112,1741952473320,913.0,0.000458,30]
[356141113,1741952473730,913.0,0.000458,30]
[356141114,1741952474485,913.0,0.000458,30]
[356141115,1741952474977,913.0,0.000458,30]
[356141116,1741952475086,913.0,0.000458,30]
[356141117,1741952475218,913.0,0.000458,30]
[356141118,1741952475379,913.0,0.000458,30]
[356141119,1741952475559,913.0,0.000458,30]
[356141120,1741952475733,913.0,0.000458,30]
[356141121,1741952475910,913.0,0.000458,30]
[356141122,1741952476104,913.0,0.000458,30]
[356141123,1741952476288,913.0,0.000458,30]
[356141124,1741952476471,913.0,0.000458,30]
[356141125,1741952476701,913.0,0.000458,30]
[356141126,1741952477118,913.0,0.000458,30]
[356141127,1741952477324,913.0,0.000458,30]
[356141128,1741952477694,913.0,0.000458,30]
[356141129,1741952477873,929.88336392,0.000458,30]
[356141130,1741952479210,197.28489786,0.000458,30]
[356141131,1741952486137,-2000.0,0.00048478,120]
[356141132,1741952486163,-51404.40748657,0.00048478,30]
[356141133,1741952486189,-150.0,0.00048478,120]
[356141134,1741952486214,-2000.0,0.00048478,30]
[356141135,1741952486240,-2000.0,0.00048478,30]
[356141136,1741952486266,-3887.0,0.00048478,120]
[356141137,1741952486291,-1138.60527588,0.00048478,120]
[356141138,1741952486316,-437.43680053,0.00048478,120]
[356141139,1741952486341,-1695.44698125,0.00048478,32]
[356141140,1741952486366,-245.15711994,0.00048478,120]
[356141141,1741952486391,-533.63629341,0.00048478,120]
[356141142,1741952486414,-861.37031517,0.00048478,30]
[356141143,1741952486439,-1068.69192204,0.00048478,120]
[356141144,1741952486464,-2109.8379992,0.00048478,120]
[356141145,1741952486488,-158.73898545,0.00048478,120]
[356141146,1741952486513,-1180.01350735,0.00048478,35]
[356141147,1741952486537,-1226.0,0.00048478,65]
[356141148,1741952486562,-11400.0,0.00048478,30]
[356141149,1741952486588,-902.8687,0.00048478,120]
[356141150,1741952486613,-2454.95170386,0.00048478,30]
[356141151,1741952486637,-2053.91630787,0.00048478,120]
[356141152,1741952486662,-1868.01114122,0.00048478,120]
[356141153,1741952486687,-678.52691,0.00048478,120]
[356141154,1741952486712,-3480.07155292,0.00048478,60]
[356141155,1741952486737,-240.82074905,0.00048478,120]
[356141156,1741952486761,-1252.35713853,0.00048478,120]
[356141157,1741952486786,-238.95012683,0.00048478,30]
[356141158,1741952486811,-1972.14882053,0.00048478,120]
[356141159,1741952486836,-933.92785892,0.00048478,120]
[356141160,1741952486861,-1776.71222382,0.00048478,120]
[356141161,1741952486886,-343.02492045,0.00048478,30]
[356141162,1741952486913,-861.05334289,0.00048478,120]
[356141163,1741952486940,-936.46094925,0.00048478,120]
[356141164,1741952486967,-1037.98357866,0.00048478,120]
[356141165,1741952486994,-2542.14442911,0.00048478,120]
[356141166,1741952487020,-342.60783907,0.00048478,120]
[356141167,1741952487045,-993.18584651,0.00048478,120]
[356141168,1741952487071,-17391.75616027,0.00048478,30]
[356141169,1741952487096,-1686.38329233,0.00048478,120]
[356141170,1741952487122,-439.91029291,0.00048478,120]
[356141171,1741952487148,-2345.85025838,0.00048478,120]
[356141172,1741952487173,-1732.35121963,0.00048478,120]
[356141173,1741952487199,-740.89842445,0.00048478,120]
[356141174,1741952487225,-420.49838506,0.00048478,120]
[356141175,1741952487249,-986.07616924,0.00048478,120]
[356141176,1741952487274,-212.84005941,0.00048478,120]
[356141177,1741952487299,-229.16139521,0.00048478,120]
[356141178,1741952487324,-312.46739073,0.00048478,120]
[356141179,1741952487349,-200.86005836,0.00048478,120]
[356141180,1741952487374,-2000.0,0.00048478,60]
[356141181,1741952487399,-1409.33979605,0.00048478,120]
[356141182,1741952487426,-2242.25372041,0.00048478,120]
[356141183,1741952487454,-480000.0,0.00048478,30]
[356141184,1741952487482,-279243.28655128,0.00048478,30]
[356141185,1741952492959,-244752.13166237,0.00048478,30]
[356141186,1741952492991,-10000.0,0.00048478,30]
[356141187,1741952493021,-10000.0,0.00048478,31]
[356141188,1741952493051,-10000.0,0.00048478,32]
[356141189,1741952493083,-10000.0,0.00048478,33]
[356141190,1741952493113,-10000.0,0.00048478,30]
[356141191,1741952493143,-4082.0,0.00048478,120]
[356141192,1741952493172,-62390.99034024,0.00048478,120]
[356141193,1741952493199,-2516.91314458,0.00048478,30]
[356141194,1741952493228,-473.51099968,0.00048478,55]
[356141195,1741952493256,-1296.09,0.00048478,120]
[356141196,1741952493283,-253.5,0.00048478,30]
[356141197,1741952493310,-336.5,0.00048478,30]
[356141198,1741952493337,-117981.0,0.00048478,120]
[356141199,1741952493364,-1096.01400705,0.00048478,35]
[356141200,1741952493392,-56541.77606226,0.00048478,30]
[356141201,1741952493418,-180723.12669954,0.00048478,120]
[356141202,1741952493446,-1000.0,0.00048478,120]
[356141203,1741952493472,-2468129.637357,0.00048478,120]
[356141204,1741952493500,-1962.91483732,0.00048478,60]
[356141205,1741952493531,-187640.131446,0.00048478,120]
[356141206,1741952493561,-316.42266349,0.00048478,120]
[356141207,1741952493588,-499.999999,0.00048478,120]
[356141208,1741952493615,-20000.0,0.00048478,30]
[356141209,1741952493641,-100000.0,0.00048478,30]
[356141210,1741952493666,-1000.0,0.00048478,120]
[356141211,1741952493693,-1000.0,0.00048478,120]
[356141212,1741952493718,-1000.0,0.00048478,120]
[356141213,1741952493744,-1000.0,0.00048478,120]
[356141214,1741952493770,-165.30272742,0.00048478,35]
[356141215,1741952493797,-39999.999999,0.00048478,30]
[356141216,1741952493822,-1492.62084373,0.00048478,120]
[356141217,1741952493848,-2000.0,0.00048478,120]
[356141218,1741952493874,-4183.3431262,0.00048478,35]
[356141219,1741952493901,-150.0,0.00048478,31]
[356141220,1741952493935,-182.0,0.00048478,31]
[356141221,1741952493963,-230.0,0.00048478,31]
[356141222,1741952493993,-355.0,0.00048478,31]
[356141223,1741952494023,-365.0,0.00048478,31]
[356141224,1741952494050,-563.0,0.00048478,31]
[356141225,1741952494077,-150.0,0.00048478,31]
[356141226,1741952494103,-232.0,0.00048478,31]
[356141227,1741952494130,-465.0,0.00048478,31]
[356141228,1741952494156,-930.0,0.00048478,31]
[356141229,1741952494181,-1859.0,0.00048478,31]
[356141230,1741952494208,-3718.0,0.00048478,31]
[356141231,1741952494234,-7437.0,0.00048478,31]
[356141232,1741952494260,-14873.0,0.00048478,31]
[356141233,1741952494287,-14873.0,0.00048478,31]
[356141234,1741952494314,-23484.0,0.00048478,31]
[356141235,1741952494341,-29747.0,0.00048478,31]
[356141236,1741952494368,-36191.0,0.00048478,31]
[356141237,1741952494394,-57446.0,0.00048478,31]
[356141238,1741952494420,-877.599999,0.00048478,30]
[356141239,1741952494447,-1500.0,0.00048478,120]
[356141240,1741952494473,-1704.0,0.00048478,120]
[356141241,1741952494499,-1201.7281822,0.00048478,35]
[356141242,1741952494525,-30201.377115,0.00048478,60]
[356141243,1741952494549,-150.0,0.00048478,31]
[356141244,1741952494574,-197.0,0.00048478,31]
[356141245,1741952494599,-394.0,0.00048478,31]
[356141246,1741952494624,-497.0,0.00048478,31]
[356141247,1741952494648,-766.0,0.00048478,31]
[356141248,1741952494673,-788.0,0.00048478,31]
[356141249,1741952494892,-1216.0,0.00048478,31]
[356141250,1741952494923,-1311.0,0.00048478,120]
[356141251,1741952494950,-150.0,0.00048478,31]
[356141252,1741952494977,-294.0,0.00048478,31]
[356141253,1741952495006,-588.0,0.00048478,31]
[356141254,1741952495032,-743.0,0.00048478,31]
[356141255,1741952495057,-1145.0,0.00048478,31]
[356141256,1741952495084,-1177.0,0.00048478,31]
[356141257,1741952495109,-1817.0,0.00048478,31]
[356141258,1741952495133,-46514.65840501,0.00048478,20]
[356141259,1741952495158,-343.896175,0.00048478,120]
[356141260,1741952495184,-500.0,0.00048478,120]
[356141261,1741952495209,-960.0,0.00048478,120]
[356141262,1741952495233,-4500.26301433,0.00048478,120]
[356141263,1741952495259,-150.0,0.00048478,31]
[356141264,1741952495284,-150.0,0.00048478,31]
[356141265,1741952495309,-150.0,0.00048478,31]
[356141266,1741952495333,-200.0,0.00048478,31]
[356141267,1741952495357,-10000.0,0.00048478,31]
[356141268,1741952495380,-5360.0,0.00048478,60]
[356141269,1741952495403,-50000.0,0.00048478,30]
[356141270,1741952495427,-150.0,0.00048478,31]
[356141271,1741952495452,-165.0,0.00048478,31]
[356141272,1741952495478,-255.0,0.00048478,31]
[356141273,1741952495502,-262.0,0.00048478,31]
[356141274,1741952495527,-404.0,0.00048478,31]
[356141275,1741952495553,-264.0,0.00048478,120]
[356141276,1741952495578,-239.0,0.00048478,60]
[356141277,1741952495603,-166.0,0.00048478,90]
[356141278,1741952495627,-150.0,0.00048478,30]
[356141279,1741952495651,-150.0,0.00048478,40]
[356141280,1741952495676,-150.0,0.00048478,40]
[356141281,1741952495701,-150.0,0.00048478,35]
[356141282,1741952495726,-150.0,0.00048478,45]
[356141283,1741952495752,-150.0,0.00048478,50]
[356141284,1741952495779,-150.0,0.00048478,55]
[356141285,1741952495808,-150.0,0.00048478,60]
[356141286,1741952495835,-150.0,0.00048478,65]
[356141287,1741952495861,-150.0,0.00048478,70]
[356141288,1741952495887,-150.0,0.00048478,80]
[356141289,1741952495916,-1004.465899,0.00048478,30]
[356141290,1741952495943,-1277.672881,0.00048478,30]
[356141295,1741952552301,1756.88835604,0.0001535,120]
[356141300,1741952711429,600.0,0.00011,3]
[356141301,1741952731668,1931.04,0.00014001,30]
[356141304,1741952854261,-150.97123,8.043e-05,2]
[356141305,1741952865944,150.97123,7.963e-05,2]
[356141306,1741952882131,-22.701991,8.043e-05,2]
[356141307,1741952882160,-177.298009,8.736e-05,2]
[356141315,1741952942624,-273.45116038,8.736e-05,2]
[356141317,1741952946325,-49.25083062,8.736e-05,2]
[356141318,1741952946348,-161.86409277,8.736e-05,2]
[356141319,1741952950107,-18.10965886,8.736e-05,2]
[356141320,1741952950131,-255.15436681,8.736e-05,2]
[356141321,1741952958101,-44.84563319,8.736e-05,2]
[356141322,1741952958125,-437.95546223,8.737e-05,2]
[356141323,1741952958739,-261.7922,8.737e-05,2]
[356141324,1741952965121,-10507.25279849,8.737e-05,2]
[356141325,1741952965144,-507.99818162,8.737e-05,2]
[356141326,1741952965166,-502.35288,8.737e-05,2]
[356141327,1741952965187,-500.0,8.737e-05,2]
[356141328,1741952965207,-513.17854424,8.737e-05,2]
[356141329,1741952965229,-500.0,8.737e-05,2]
[356141330,1741952965249,-500.0,8.737e-05,2]
[356141331,1741952965270,-509.54823625,8.737e-05,2]
[356141332,1741952965290,-500.0,8.737e-05,2]
[356141333,1741952965310,-500.0,8.737e-05,2]
[356141334,1741952965330,-500.0,8.737e-05,2]
[356141335,1741952965350,-510.44285543,8.737e-05,2]
[356141336,1741952965373,-500.0,8.737e-05,2]